[Event "FWCT 2019"]
[Site "Kazan"]
[Date "2019.06.12"]
[Round "10.4"]
[White "Muzychuk, Mariya"]
[Black "Dzagnidze, Nana"]
[Result "1/2-1/2"]
[ECO "B31"]
[WhiteElo "2563"]
[BlackElo "2510"]
[Annotator "ChessBase"]
[PlyCount "64"]
[EventDate "2019.05.11"]
[EventType "tourn"]
[EventCountry "RUS"]
[SourceTitle "playchess.com"]
[Source "ChessBase"]
[SourceQuality "1"]
[TimeControl "40/5400+30:1800+30"]

1. e4 {[%emt 0:00:00]} c5 {[%emt 0:00:00]} 2. Nf3 {[%emt 0:00:00]} Nc6 {[%emt 0:00:00]} 3. Bb5 {[%emt 0:00:03]} g6 {[%emt 0:00:00]} 4. Bxc6 {[%emt 0:00:19]} bxc6 {[%emt 0:00:00]} 5. O-O {[%emt 0:00:22]} Bg7 {[%emt 0:00:00]} 6. Re1 {[%emt 0:00:19]} Nh6 {[%emt 0:02:54]} 7. c3 {[%emt 0:02:20]} O-O {[%emt 0:00:06]} 8. h3 {[%emt 0:00:27]} f5 {[%emt 0:00:31]} 9. e5 {[%emt 0:00:16]} Nf7 {[%emt 0:00:09]} 10. d3 {[%emt 0:00:41]} d6 {[%emt 0:01:19]} 11. Bf4 {[%emt 0:00:32]} Ba6 {[%emt 0:03:51]} 12. Nbd2 {[%emt 0:00:46]} dxe5 {[%emt 0:31:43]} 13. Nxe5 {[%emt 0:13:15]} Bxe5 {[%emt 0:00:47]} 14. Bxe5 {[%emt 0:00:06]} Bxd3 {[%emt 0:02:08]} 15. Qb3 {[%emt 0:12:04]} a5 {[%emt 0:17:55]} 16. a4 {[%emt 0:13:18]} Qd7 {[%emt 0:07:30]} 17. Bf4 {[%emt 0:09:17]} g5 {[%emt 0:02:56]} 18. Be5 {[%emt 0:06:11]} f4 {[%emt 0:04:24]} 19. Nf3 {[%emt 0:08:49]} Rad8 {[%emt 0:13:10]} 20. Nxg5 {[%emt 0:11:19]} c4 {[%emt 0:00:04]} 21. Nxf7 {[%emt 0:00:07]} Rxf7 {[%emt 0:00:25]} 22. Qb6 {[%emt 0:00:29]} f3 {[%emt 0:01:51]} 23. Qe3 {[%emt 0:02:29]} Qf5 {[%emt 0:02:25]} 24. Qxf3 {[%emt 0:04:22]} Qxf3 {[%emt 0:00:08]} 25. gxf3 {[%emt 0:00:01]} Rxf3 {[%emt 0:00:16]} 26. Bg3 {[%emt 0:00:32]} Kf7 {[%emt 0:00:54]} 27. Kg2 {[%emt 0:01:25]} Rf5 {[%emt 0:00:17]} 28. Re3 {[%emt 0:00:04]} Re8 {[%emt 0:03:13]} 29. Rae1 {[%emt 0:06:26]} e6 {[%emt 0:00:18]} 30. Re5 {[%emt 0:00:50]} Bc2 {[%emt 0:00:38]} 31. Rxf5+ {[%emt 0:00:42]} exf5 {[%emt 0:00:04]} 32. Rxe8 {[%emt 0:00:25]} Kxe8 {[%emt 0:00:07]} 1/2-1/2

[Event "FWCT 2019"]
[Site "Kazan"]
[Date "2019.06.13"]
[Round "11.2"]
[White "Tan, Zhongyi"]
[Black "Kosteniuk, Alexandra"]
[Result "1-0"]
[ECO "E21"]
[WhiteElo "2513"]
[BlackElo "2546"]
[Annotator "ChessBase"]
[PlyCount "63"]
[EventDate "2019.05.11"]
[EventType "tourn"]
[EventCountry "RUS"]
[SourceTitle "playchess.com"]
[Source "ChessBase"]
[SourceQuality "1"]
[TimeControl "40/5400+30:1800+30"]

1. d4 {[%emt 0:00:00]} Nf6 {[%emt 0:00:00]} 2. c4 {[%emt 0:00:00]} e6 {[%emt 0:00:00]} 3. Nf3 {[%emt 0:00:00]} Bb4+ {[%emt 0:00:00]} 4. Nc3 {[%emt 0:01:02]} b6 {[%emt 0:00:19]} 5. e3 {[%emt 0:00:17]} Bb7 {[%emt 0:00:13]} 6. Bd3 {[%emt 0:00:21]} O-O {[%emt 0:00:15]} 7. O-O {[%emt 0:00:51]} c5 {[%emt 0:00:11]} 8. dxc5 {[%emt 0:21:31]} Bxc3 {[%emt 0:04:06]} 9. bxc3 {[%emt 0:00:06]} bxc5 {[%emt 0:00:08]} 10. Qc2 {[%emt 0:00:35]} Qc7 {[%emt 0:06:04]} 11. e4 {[%emt 0:01:08]} Nc6 {[%emt 0:00:27]} 12. Re1 {[%emt 0:01:10]} Ng4 {[%emt 0:08:48]} 13. Rb1 {[%emt 0:15:22]} Rab8 {[%emt 0:04:00]} 14. e5 {[%emt 0:03:59]} g6 {[%emt 0:04:48]} 15. Bf4 {[%emt 0:02:22]} f6 {[%emt 0:11:45]} 16. Bxg6 {[%emt 0:15:09]} f5 {[%emt 0:00:46]} 17. Bh5 {[%emt 0:07:04]} Nf6 {[%emt 0:00:19]} 18. exf6 {[%emt 0:00:06]} Qxf4 {[%emt 0:00:04]} 19. Qd3 {[%emt 0:00:23]} Rfd8 {[%emt 0:09:28]} 20. Be8 {[%emt 0:00:41]} Kf8 {[%emt 0:07:06]} 21. f7 {[%emt 0:00:07]} Ba8 {[%emt 0:16:23]} 22. Rxb8 {[%emt 0:03:36]} Nxb8 {[%emt 0:00:12]} 23. Ne5 {[%emt 0:06:52]} d6 {[%emt 0:03:29]} 24. Qh3 {[%emt 0:05:52]} Qg5 {[%emt 0:01:18]} 25. Nf3 {[%emt 0:02:34]} Qg6 {[%emt 0:04:18]} 26. Nh4 {[%emt 0:01:20]} Qg5 {[%emt 0:02:41]} 27. f4 {[%emt 0:00:17]} Qf6 {[%emt 0:01:00]} 28. Qg3 {[%emt 0:00:17]} Qg7 {[%emt 0:07:40]} 29. Qxg7+ {[%emt 0:00:10]} Kxg7 {[%emt 0:00:03]} 30. Rxe6 {[%emt 0:00:07]} Be4 {[%emt 0:00:43]} 31. Rh6 {[%emt 0:00:28]} Nd7 {[%emt 0:00:17]} 32. Rxd6 {[%emt 0:00:09]} 1-0

[Event "FWCT 2019"]
[Site "Kazan"]
[Date "2019.06.13"]
[Round "11.3"]
[White "Goryachkina, Aleksandra"]
[Black "Muzychuk, Anna"]
[Result "1/2-1/2"]
[ECO "D70"]
[WhiteElo "2522"]
[BlackElo "2539"]
[Annotator "ChessBase"]
[PlyCount "60"]
[EventDate "2019.05.11"]
[EventType "tourn"]
[EventCountry "RUS"]
[SourceTitle "playchess.com"]
[Source "ChessBase"]
[SourceQuality "1"]
[TimeControl "40/5400+30:1800+30"]

1. d4 {[%emt 0:00:00]} Nf6 {[%emt 0:00:00]} 2. c4 {[%emt 0:00:00]} g6 {[%emt 0:00:00]} 3. Nf3 {[%emt 0:00:00]} Bg7 {[%emt 0:00:06]} 4. g3 {[%emt 0:00:06]} O-O {[%emt 0:00:42]} 5. Bg2 {[%emt 0:00:12]} c6 {[%emt 0:00:33]} 6. O-O {[%emt 0:00:42]} d5 {[%emt 0:00:06]} 7. Qa4 {[%emt 0:00:29]} Bg4 {[%emt 0:07:52]} 8. Nc3 {[%emt 0:03:06]} Nbd7 {[%emt 0:06:34]} 9. cxd5 {[%emt 0:00:44]} cxd5 {[%emt 0:03:25]} 10. Ne5 {[%emt 0:04:07]} Be6 {[%emt 0:03:47]} 11. Rd1 {[%emt 0:07:59]} Nb6 {[%emt 0:09:41]} 12. Qa5 {[%emt 0:02:14]} Nc8 {[%emt 0:07:38]} 13. Qxd8 {[%emt 0:09:37]} Rxd8 {[%emt 0:00:01]} 14. b3 {[%emt 0:02:10]} Ne4 {[%emt 0:06:24]} 15. Bb2 {[%emt 0:01:14]} Ncd6 {[%emt 0:07:39]} 16. Rac1 {[%emt 0:00:55]} Rac8 {[%emt 0:01:26]} 17. e3 {[%emt 0:03:00]} f5 {[%emt 0:05:43]} 18. h4 {[%emt 0:11:54]} Kf8 {[%emt 0:02:50]} 19. Ne2 {[%emt 0:04:10]} Rxc1 {[%emt 0:01:12]} 20. Rxc1 {[%emt 0:00:31]} Rc8 {[%emt 0:00:36]} 21. f3 {[%emt 0:02:41]} Rxc1+ {[%emt 0:00:59]} 22. Bxc1 {[%emt 0:00:09]} Nf6 {[%emt 0:00:08]} 23. Nf4 {[%emt 0:00:33]} Bc8 {[%emt 0:02:33]} 24. Bf1 {[%emt 0:01:17]} Nde8 {[%emt 0:04:47]} 25. Kf2 {[%emt 0:03:36]} Nc7 {[%emt 0:01:02]} 26. Ba3 {[%emt 0:00:55]} Ke8 {[%emt 0:06:24]} 27. Be2 {[%emt 0:03:21]} Nd7 {[%emt 0:01:47]} 28. Ned3 {[%emt 0:00:47]} Nf6 {[%emt 0:00:34]} 29. Ne5 {[%emt 0:04:17]} Nd7 {[%emt 0:00:05]} 30. Ned3 {[%emt 0:00:07]} Nf6 {[%emt 0:00:04]} 1/2-1/2

[Event "FWCT 2019"]
[Site "Kazan"]
[Date "2019.06.13"]
[Round "11.4"]
[White "Lagno, Kateryna"]
[Black "Muzychuk, Mariya"]
[Result "1/2-1/2"]
[ECO "B33"]
[WhiteElo "2554"]
[BlackElo "2563"]
[Annotator "ChessBase"]
[PlyCount "82"]
[EventDate "2019.05.11"]
[EventType "tourn"]
[EventCountry "RUS"]
[SourceTitle "playchess.com"]
[Source "ChessBase"]
[SourceQuality "1"]
[TimeControl "40/5400+30:1800+30"]

1. e4 {[%emt 0:00:00]} c5 {[%emt 0:00:00]} 2. Nf3 {[%emt 0:00:00]} e6 {[%emt 0:00:00]} 3. d4 {[%emt 0:00:00]} cxd4 {[%emt 0:00:00]} 4. Nxd4 {[%emt 0:00:00]} Nf6 {[%emt 0:00:00]} 5. Nc3 {[%emt 0:00:09]} Nc6 {[%emt 0:00:04]} 6. Ndb5 {[%emt 0:00:31]} d6 {[%emt 0:00:09]} 7. Bf4 {[%emt 0:00:11]} e5 {[%emt 0:00:05]} 8. Bg5 {[%emt 0:00:04]} a6 {[%emt 0:00:07]} 9. Na3 {[%emt 0:00:12]} b5 {[%emt 0:00:04]} 10. Bxf6 {[%emt 0:00:28]} gxf6 {[%emt 0:00:05]} 11. Nd5 {[%emt 0:00:05]} f5 {[%emt 0:00:06]} 12. g3 {[%emt 0:00:28]} fxe4 {[%emt 0:04:31]} 13. Bg2 {[%emt 0:00:18]} Bg7 {[%emt 0:00:26]} 14. Bxe4 {[%emt 0:00:57]} Be6 {[%emt 0:00:15]} 15. Qh5 {[%emt 0:00:37]} Rc8 {[%emt 0:02:02]} 16. c3 {[%emt 0:00:11]} Ne7 {[%emt 0:02:33]} 17. Rd1 {[%emt 0:01:10]} Rc5 {[%emt 0:01:42]} 18. Nxe7 {[%emt 0:00:27]} Qxe7 {[%emt 0:01:55]} 19. O-O {[%emt 0:00:31]} d5 {[%emt 0:03:05]} 20. Bf5 {[%emt 0:02:25]} Bxf5 {[%emt 0:19:09]} 21. Qxf5 {[%emt 0:00:37]} O-O {[%emt 0:07:06]} 22. Nc2 {[%emt 0:01:15]} Qe6 {[%emt 0:12:35]} 23. Qh5 {[%emt 0:10:19]} a5 {[%emt 0:12:50]} 24. Ne3 {[%emt 0:04:01]} f5 {[%emt 0:03:08]} 25. a3 {[%emt 0:01:48]} e4 {[%emt 0:08:41]} 26. Rd2 {[%emt 0:10:31]} b4 {[%emt 0:01:58]} 27. axb4 {[%emt 0:00:34]} axb4 {[%emt 0:00:03]} 28. Rfd1 {[%emt 0:01:16]} bxc3 {[%emt 0:01:11]} 29. bxc3 {[%emt 0:00:05]} Bh6 {[%emt 0:02:44]} 30. Rd4 {[%emt 0:16:11]} Bxe3 {[%emt 0:03:33]} 31. fxe3 {[%emt 0:00:05]} Qg6 {[%emt 0:01:57]} 32. Qh4 {[%emt 0:03:21]} Rxc3 {[%emt 0:02:01]} 33. Rxd5 {[%emt 0:04:55]} Rxe3 {[%emt 0:00:46]} 34. Rd8 {[%emt 0:01:53]} Re1+ {[%emt 0:01:25]} 35. Rxe1 {[%emt 0:00:09]} Qb6+ {[%emt 0:00:03]} 36. Kg2 {[%emt 0:02:39]} Qxd8 {[%emt 0:00:16]} 37. Qxd8 {[%emt 0:00:07]} Rxd8 {[%emt 0:00:03]} 38. g4 {[%emt 0:00:18]} fxg4 {[%emt 0:00:46]} 39. Rxe4 {[%emt 0:00:04]} h5 {[%emt 0:00:02]} 40. Re5 {[%emt 0:00:00]} Rd2+ {[%emt 0:00:00]} 41. Kg1 {[%emt 0:00:26]} Kg7 {[%emt 0:01:07]} 1/2-1/2

[Event "FWCT 2019"]
[Site "Kazan"]
[Date "2019.06.14"]
[Round "12.1"]
[White "Muzychuk, Mariya"]
[Black "Gunina, Valentina"]
[Result "0-1"]
[ECO "B12"]
[WhiteElo "2563"]
[BlackElo "2506"]
[Annotator "ChessBase"]
[PlyCount "162"]
[EventDate "2019.05.11"]
[EventType "tourn"]
[EventCountry "RUS"]
[SourceTitle "playchess.com"]
[Source "ChessBase"]
[SourceQuality "1"]
[TimeControl "40/5400+30:1800+30"]

1. e4 {[%emt 0:00:00]} c6 {[%emt 0:00:00]} 2. d4 {[%emt 0:00:00]} d5 {[%emt 0:00:00]} 3. e5 {[%emt 0:00:00]} Bf5 {[%emt 0:00:00]} 4. Nf3 {[%emt 0:00:13]} e6 {[%emt 0:00:03]} 5. Be2 {[%emt 0:00:24]} Nd7 {[%emt 0:00:08]} 6. O-O {[%emt 0:01:13]} h6 {[%emt 0:00:05]} 7. c3 {[%emt 0:00:29]} Ne7 {[%emt 0:00:11]} 8. Nbd2 {[%emt 0:00:36]} a5 {[%emt 0:00:27]} 9. a4 {[%emt 0:00:41]} Bh7 {[%emt 0:03:21]} 10. Re1 {[%emt 0:03:40]} Qc7 {[%emt 0:06:15]} 11. Nf1 {[%emt 0:02:05]} c5 {[%emt 0:04:07]} 12. dxc5 {[%emt 0:08:10]} Nc6 {[%emt 0:01:46]} 13. Bb5 {[%emt 0:06:01]} Bxc5 {[%emt 0:05:12]} 14. Ng3 {[%emt 0:01:44]} O-O {[%emt 0:02:28]} 15. Qe2 {[%emt 0:05:04]} Rfd8 {[%emt 0:05:49]} 16. Bf4 {[%emt 0:15:35]} d4 {[%emt 0:05:13]} 17. Ne4 {[%emt 0:13:04]} dxc3 {[%emt 0:00:33]} 18. bxc3 {[%emt 0:00:30]} Bf8 {[%emt 0:00:20]} 19. Nd4 {[%emt 0:03:39]} Ne7 {[%emt 0:04:18]} 20. Bxd7 {[%emt 0:11:57]} Rxd7 {[%emt 0:02:05]} 21. Nb5 {[%emt 0:01:02]} Qc6 {[%emt 0:00:33]} 22. Ned6 {[%emt 0:01:15]} Nd5 {[%emt 0:00:52]} 23. Bd2 {[%emt 0:00:13]} Nb6 {[%emt 0:00:38]} 24. c4 {[%emt 0:05:00]} Bxd6 {[%emt 0:11:22]} 25. Nxd6 {[%emt 0:00:33]} Nxa4 {[%emt 0:01:46]} 26. h4 {[%emt 0:01:28]} Nc5 {[%emt 0:08:53]} 27. Rxa5 {[%emt 0:05:56]} Rad8 {[%emt 0:03:55]} 28. Bc3 {[%emt 0:01:50]} f6 {[%emt 0:02:32]} 29. Qg4 {[%emt 0:05:26]} fxe5 {[%emt 0:01:54]} 30. Bxe5 {[%emt 0:00:31]} h5 {[%emt 0:04:24]} 31. Qg5 {[%emt 0:00:44]} Rf8 {[%emt 0:01:51]} 32. Bg3 {[%emt 0:01:04]} b6 {[%emt 0:01:35]} 33. Rxc5 {[%emt 0:00:25]} Qxc5 {[%emt 0:00:06]} 34. Qxc5 {[%emt 0:00:46]} bxc5 {[%emt 0:00:02]} 35. Rxe6 {[%emt 0:00:08]} Bd3 {[%emt 0:00:34]} 36. Re3 {[%emt 0:00:32]} Bg6 {[%emt 0:00:06]} 37. Rb3 {[%emt 0:01:23]} Rf6 {[%emt 0:02:37]} 38. Rb6 {[%emt 0:00:52]} Kh7 {[%emt 0:03:37]} 39. Be5 {[%emt 0:01:00]} Re6 {[%emt 0:00:25]} 40. f4 {[%emt 0:00:00]} Be4 {[%emt 0:00:00]} 41. Kf2 {[%emt 0:03:16]} Ra7 {[%emt 0:05:16]} 42. Rb2 {[%emt 0:09:54]} Ba8 {[%emt 0:02:29]} 43. Re2 {[%emt 0:02:30]} Ra3 {[%emt 0:03:38]} 44. Nf7 {[%emt 0:04:46]} Re7 {[%emt 0:04:26]} 45. Nd6 {[%emt 0:00:06]} Bc6 {[%emt 0:00:27]} 46. Nf5 {[%emt 0:09:38]} Rea7 {[%emt 0:05:15]} 47. Bd6 {[%emt 0:00:09]} Bd7 {[%emt 0:00:54]} 48. Ne3 {[%emt 0:02:08]} R7a5 {[%emt 0:00:12]} 49. Rd2 {[%emt 0:02:16]} Bc6 {[%emt 0:00:12]} 50. Bc7 {[%emt 0:01:16]} Ra6 {[%emt 0:00:27]} 51. Bd6 {[%emt 0:00:05]} R3a5 {[%emt 0:01:23]} 52. Bc7 {[%emt 0:01:06]} Ra2 {[%emt 0:02:26]} 53. Rxa2 {[%emt 0:00:01]} Rxa2+ {[%emt 0:00:04]} 54. Kf1 {[%emt 0:00:02]} Ra6 {[%emt 0:00:21]} 55. Bd8 {[%emt 0:00:20]} Be4 {[%emt 0:00:49]} 56. Be7 {[%emt 0:00:13]} Rc6 {[%emt 0:00:46]} 57. f5 {[%emt 0:00:41]} Kg8 {[%emt 0:00:11]} 58. Kf2 {[%emt 0:00:36]} Kf7 {[%emt 0:00:05]} 59. Bg5 {[%emt 0:00:19]} Ra6 {[%emt 0:00:08]} 60. Bd8 {[%emt 0:00:42]} Ke8 {[%emt 0:03:39]} 61. Bg5 {[%emt 0:00:20]} Ra2+ {[%emt 0:02:30]} 62. Kg1 {[%emt 0:02:14]} Kf7 {[%emt 0:01:34]} 63. Kh2 {[%emt 0:00:24]} Bd3 {[%emt 0:00:27]} 64. Bf4 {[%emt 0:00:15]} Kf6 {[%emt 0:01:05]} 65. Bd6 {[%emt 0:00:22]} Ra5 {[%emt 0:00:09]} 66. Bf8 {[%emt 0:01:46]} Bxf5 {[%emt 0:04:41]} 67. Bxg7+ {[%emt 0:00:02]} Ke6 {[%emt 0:00:05]} 68. Bf8 {[%emt 0:00:30]} Bd3 {[%emt 0:00:17]} 69. Kg3 {[%emt 0:01:13]} Ke5 {[%emt 0:00:15]} 70. Kf3 {[%emt 0:01:04]} Be4+ {[%emt 0:00:39]} 71. Kg3 {[%emt 0:00:30]} Bc6 {[%emt 0:00:41]} 72. Be7 {[%emt 0:00:27]} Ke4 {[%emt 0:00:17]} 73. Bg5 {[%emt 0:00:50]} Ra2 {[%emt 0:00:31]} 74. Bh6 {[%emt 0:00:50]} Re2 {[%emt 0:00:34]} 75. Nd5 {[%emt 0:00:45]} Bxd5 {[%emt 0:00:58]} 76. cxd5 {[%emt 0:00:03]} Kxd5 {[%emt 0:00:05]} 77. Kf3 {[%emt 0:00:03]} Re4 {[%emt 0:00:22]} 78. g3 {[%emt 0:00:21]} Kd4 {[%emt 0:00:56]} 79. Bg7+ {[%emt 0:00:37]} Kd3 {[%emt 0:00:11]} 80. Bc3 {[%emt 0:00:28]} c4 {[%emt 0:00:29]} 81. Bb2 {[%emt 0:00:07]} Rg4 {[%emt 0:00:04]} 0-1

[Event "FWCT 2019"]
[Site "Kazan"]
[Date "2019.06.14"]
[Round "12.2"]
[White "Dzagnidze, Nana"]
[Black "Kosteniuk, Alexandra"]
[Result "1-0"]
[ECO "A16"]
[WhiteElo "2510"]
[BlackElo "2546"]
[Annotator "ChessBase"]
[PlyCount "95"]
[EventDate "2019.05.11"]
[EventType "tourn"]
[EventCountry "RUS"]
[SourceTitle "playchess.com"]
[Source "ChessBase"]
[SourceQuality "1"]
[TimeControl "40/5400+30:1800+30"]

1. c4 {[%emt 0:00:00]} Nf6 {[%emt 0:00:00]} 2. Nc3 {[%emt 0:00:00]} c5 {[%emt 0:00:09]} 3. Nf3 {[%emt 0:02:59]} b6 {[%emt 0:00:34]} 4. e4 {[%emt 0:04:32]} d6 {[%emt 0:02:51]} 5. d4 {[%emt 0:05:36]} cxd4 {[%emt 0:00:20]} 6. Nxd4 {[%emt 0:00:03]} Bb7 {[%emt 0:00:14]} 7. f3 {[%emt 0:00:14]} e6 {[%emt 0:00:16]} 8. Be2 {[%emt 0:02:10]} Be7 {[%emt 0:00:14]} 9. O-O {[%emt 0:00:48]} O-O {[%emt 0:00:15]} 10. Be3 {[%emt 0:01:20]} Nbd7 {[%emt 0:00:58]} 11. Qd2 {[%emt 0:03:25]} a6 {[%emt 0:00:27]} 12. Rfd1 {[%emt 0:01:00]} Rc8 {[%emt 0:01:00]} 13. Bf1 {[%emt 0:07:35]} Qc7 {[%emt 0:04:10]} 14. Rac1 {[%emt 0:01:47]} Qb8 {[%emt 0:02:56]} 15. a3 {[%emt 0:03:42]} Kh8 {[%emt 0:17:03]} 16. b4 {[%emt 0:03:17]} Rg8 {[%emt 0:01:02]} 17. Nb3 {[%emt 0:06:40]} Ba8 {[%emt 0:08:57]} 18. Kh1 {[%emt 0:04:24]} Ne5 {[%emt 0:06:17]} 19. Na4 {[%emt 0:00:37]} Nfd7 {[%emt 0:00:37]} 20. Bg5 {[%emt 0:06:20]} Bf8 {[%emt 0:06:35]} 21. Qf2 {[%emt 0:03:34]} Rc6 {[%emt 0:03:30]} 22. Be2 {[%emt 0:03:22]} Qc8 {[%emt 0:03:27]} 23. Nb2 {[%emt 0:06:42]} Ng6 {[%emt 0:07:34]} 24. Be3 {[%emt 0:03:42]} Be7 {[%emt 0:00:26]} 25. a4 {[%emt 0:00:43]} Bf6 {[%emt 0:01:51]} 26. Rb1 {[%emt 0:04:24]} d5 {[%emt 0:04:09]} 27. cxd5 {[%emt 0:06:13]} exd5 {[%emt 0:02:05]} 28. Rxd5 {[%emt 0:00:07]} Rc2 {[%emt 0:07:22]} 29. Rd4 {[%emt 0:08:54]} Bxd4 {[%emt 0:03:36]} 30. Nxd4 {[%emt 0:00:02]} Rc3 {[%emt 0:00:56]} 31. Nf5 {[%emt 0:03:09]} Rc2 {[%emt 0:10:04]} 32. Nc4 {[%emt 0:00:39]} Qc7 {[%emt 0:01:11]} 33. Ncd6 {[%emt 0:01:19]} Rf8 {[%emt 0:02:05]} 34. Qf1 {[%emt 0:01:39]} Rc6 {[%emt 0:02:51]} 35. Rd1 {[%emt 0:00:24]} f6 {[%emt 0:00:18]} 36. Bxa6 {[%emt 0:00:30]} Nde5 {[%emt 0:00:54]} 37. Bb5 {[%emt 0:00:23]} Rc3 {[%emt 0:00:09]} 38. Qg1 {[%emt 0:01:46]} Rb3 {[%emt 0:00:35]} 39. Bxb6 {[%emt 0:00:44]} Qc3 {[%emt 0:00:28]} 40. Bd4 {[%emt 0:00:00]} Qxb4 {[%emt 0:00:00]} 41. Bc5 {[%emt 0:07:38]} Qc3 {[%emt 0:02:39]} 42. Rc1 {[%emt 0:02:34]} Qd2 {[%emt 0:03:58]} 43. Nc4 {[%emt 0:01:56]} Qxc1 {[%emt 0:06:34]} 44. Qxc1 {[%emt 0:00:14]} Nd3 {[%emt 0:00:01]} 45. Qc2 {[%emt 0:00:38]} Nxc5 {[%emt 0:00:19]} 46. Nd2 {[%emt 0:01:06]} Rd8 {[%emt 0:01:04]} 47. Nxb3 {[%emt 0:01:25]} Nxe4 {[%emt 0:00:06]} 48. Nbd4 {[%emt 0:00:53]} 1-0

[Event "FWCT 2019"]
[Site "Kazan"]
[Date "2019.06.14"]
[Round "12.3"]
[White "Tan, Zhongyi"]
[Black "Goryachkina, Aleksandra"]
[Result "1/2-1/2"]
[ECO "B12"]
[WhiteElo "2513"]
[BlackElo "2522"]
[Annotator "ChessBase"]
[PlyCount "110"]
[EventDate "2019.05.11"]
[EventType "tourn"]
[EventCountry "RUS"]
[SourceTitle "playchess.com"]
[Source "ChessBase"]
[SourceQuality "1"]
[TimeControl "40/5400+30:1800+30"]

1. e4 {[%emt 0:00:00]} c6 {[%emt 0:00:00]} 2. d4 {[%emt 0:00:00]} d5 {[%emt 0:00:05]} 3. e5 {[%emt 0:00:00]} Bf5 {[%emt 0:00:13]} 4. Nf3 {[%emt 0:00:00]} e6 {[%emt 0:00:14]} 5. Be2 {[%emt 0:00:00]} c5 {[%emt 0:00:34]} 6. Be3 {[%emt 0:00:47]} Qb6 {[%emt 0:01:33]} 7. Nc3 {[%emt 0:00:12]} Nc6 {[%emt 0:00:28]} 8. Na4 {[%emt 0:00:11]} Qa5+ {[%emt 0:00:33]} 9. c3 {[%emt 0:00:05]} cxd4 {[%emt 0:00:39]} 10. Nxd4 {[%emt 0:00:06]} Nxd4 {[%emt 0:01:43]} 11. Bxd4 {[%emt 0:00:07]} Ne7 {[%emt 0:00:53]} 12. O-O {[%emt 0:00:08]} Nc6 {[%emt 0:04:32]} 13. b4 {[%emt 0:00:08]} Qc7 {[%emt 0:03:53]} 14. Rc1 {[%emt 0:00:08]} Be7 {[%emt 0:03:52]} 15. g4 {[%emt 0:02:24]} Bg6 {[%emt 0:06:41]} 16. f4 {[%emt 0:00:34]} Qd7 {[%emt 0:04:20]} 17. Nc5 {[%emt 0:10:15]} Bxc5 {[%emt 0:01:43]} 18. Bxc5 {[%emt 0:00:09]} h5 {[%emt 0:02:55]} 19. g5 {[%emt 0:00:59]} Ne7 {[%emt 0:10:20]} 20. a4 {[%emt 0:01:22]} a6 {[%emt 0:01:56]} 21. a5 {[%emt 0:10:11]} h4 {[%emt 0:03:57]} 22. Bf3 {[%emt 0:03:21]} O-O {[%emt 0:02:25]} 23. Qe1 {[%emt 0:01:14]} Bd3 {[%emt 0:08:06]} 24. Rf2 {[%emt 0:00:17]} Bf5 {[%emt 0:00:48]} 25. Rd2 {[%emt 0:00:26]} h3 {[%emt 0:00:29]} 26. c4 {[%emt 0:01:15]} Rfd8 {[%emt 0:02:11]} 27. Rcd1 {[%emt 0:02:36]} Qe8 {[%emt 0:03:09]} 28. Kf2 {[%emt 0:11:51]} Ng6 {[%emt 0:03:31]} 29. Kg3 {[%emt 0:09:56]} dxc4 {[%emt 0:12:39]} 30. Bxb7 {[%emt 0:00:53]} c3 {[%emt 0:07:30]} 31. Rxd8 {[%emt 0:00:24]} Rxd8 {[%emt 0:00:01]} 32. Rxd8 {[%emt 0:00:22]} Qxd8 {[%emt 0:00:06]} 33. Qxc3 {[%emt 0:00:07]} Qd1 {[%emt 0:00:28]} 34. Bf3 {[%emt 0:01:11]} Qf1 {[%emt 0:00:31]} 35. Qe3 {[%emt 0:01:20]} Qb1 {[%emt 0:05:15]} 36. Qe2 {[%emt 0:01:09]} Qc1 {[%emt 0:01:37]} 37. Be3 {[%emt 0:01:02]} Qb1 {[%emt 0:00:26]} 38. Bc5 {[%emt 0:03:32]} Qc1 {[%emt 0:00:06]} 39. Qe3 {[%emt 0:00:17]} Qb1 {[%emt 0:00:34]} 40. Qd2 {[%emt 0:00:00]} Qf1 {[%emt 0:00:00]} 41. Qf2 {[%emt 0:14:10]} Qc4 {[%emt 0:04:44]} 42. Qe3 {[%emt 0:05:16]} Qf1 {[%emt 0:01:23]} 43. Bd4 {[%emt 0:01:42]} Qb1 {[%emt 0:01:54]} 44. Bc3 {[%emt 0:02:20]} Ne7 {[%emt 0:03:17]} 45. Qd4 {[%emt 0:01:37]} Kh7 {[%emt 0:03:17]} 46. Qd1 {[%emt 0:01:20]} Qa2 {[%emt 0:00:26]} 47. Qd7 {[%emt 0:03:44]} Qb1 {[%emt 0:01:26]} 48. Qd1 {[%emt 0:06:04]} Qa2 {[%emt 0:00:02]} 49. b5 {[%emt 0:10:16]} Nd5 {[%emt 0:04:04]} 50. Qd2 {[%emt 0:14:14]} Qb1 {[%emt 0:01:48]} 51. Bxd5 {[%emt 0:07:20]} exd5 {[%emt 0:02:23]} 52. Kf2 {[%emt 0:00:16]} Qh1 {[%emt 0:03:38]} 53. Ke3 {[%emt 0:00:50]} Qe4+ {[%emt 0:02:28]} 54. Kf2 {[%emt 0:00:06]} Qg2+ {[%emt 0:00:19]} 55. Ke3 {[%emt 0:00:13]} Qe4+ {[%emt 0:00:19] Kxe4} 1/2-1/2

[Event "FWCT 2019"]
[Site "Kazan"]
[Date "2019.06.14"]
[Round "12.4"]
[White "Muzychuk, Anna"]
[Black "Lagno, Kateryna"]
[Result "1-0"]
[ECO "C63"]
[WhiteElo "2539"]
[BlackElo "2554"]
[Annotator "ChessBase"]
[PlyCount "89"]
[EventDate "2019.05.11"]
[EventType "tourn"]
[EventCountry "RUS"]
[SourceTitle "playchess.com"]
[Source "ChessBase"]
[SourceQuality "1"]
[TimeControl "40/5400+30:1800+30"]

1. e4 {[%emt 0:00:00]} e5 {[%emt 0:00:00]} 2. Nf3 {[%emt 0:00:00]} Nc6 {[%emt 0:00:00]} 3. Bb5 {[%emt 0:00:00]} f5 {[%emt 0:00:00]} 4. d3 {[%emt 0:06:00]} fxe4 {[%emt 0:00:29]} 5. dxe4 {[%emt 0:00:05]} Nf6 {[%emt 0:00:08]} 6. O-O {[%emt 0:00:40]} d6 {[%emt 0:00:47]} 7. a3 {[%emt 0:04:25]} h6 {[%emt 0:02:31]} 8. Bc4 {[%emt 0:04:05]} g5 {[%emt 0:02:48]} 9. Nc3 {[%emt 0:04:14]} Bg7 {[%emt 0:01:54]} 10. Qd3 {[%emt 0:04:25]} Qe7 {[%emt 0:12:11]} 11. Be3 {[%emt 0:07:44]} Nd8 {[%emt 0:14:35]} 12. Rfe1 {[%emt 0:05:18]} Nf7 {[%emt 0:09:34]} 13. Nd2 {[%emt 0:02:26]} O-O {[%emt 0:07:57]} 14. Nf1 {[%emt 0:01:23]} a6 {[%emt 0:06:05]} 15. Ng3 {[%emt 0:01:40]} Kh8 {[%emt 0:00:07]} 16. Rad1 {[%emt 0:03:10]} Bd7 {[%emt 0:00:25]} 17. Nd5 {[%emt 0:12:03]} Nxd5 {[%emt 0:00:11]} 18. exd5 {[%emt 0:00:08]} Rae8 {[%emt 0:14:03]} 19. Qe4 {[%emt 0:06:19]} Nd8 {[%emt 0:01:50]} 20. Bd3 {[%emt 0:01:16]} Bf6 {[%emt 0:00:04]} 21. Nh5 {[%emt 0:01:58]} c6 {[%emt 0:00:51]} 22. c4 {[%emt 0:04:47]} b5 {[%emt 0:00:25]} 23. b3 {[%emt 0:00:05]} bxc4 {[%emt 0:03:38]} 24. bxc4 {[%emt 0:00:01]} cxd5 {[%emt 0:00:05]} 25. cxd5 {[%emt 0:00:04]} Nb7 {[%emt 0:02:41]} 26. Qg6 {[%emt 0:04:29]} e4 {[%emt 0:01:12]} 27. Nxf6 {[%emt 0:01:40]} Qxf6 {[%emt 0:01:02]} 28. Qxf6+ {[%emt 0:00:11]} Rxf6 {[%emt 0:00:04]} 29. Bd4 {[%emt 0:00:08]} Kg7 {[%emt 0:00:03]} 30. Rxe4 {[%emt 0:00:23]} Rxe4 {[%emt 0:00:06]} 31. Bxe4 {[%emt 0:00:10]} Nc5 {[%emt 0:00:03]} 32. f3 {[%emt 0:02:55]} Kf7 {[%emt 0:00:56]} 33. Bxf6 {[%emt 0:00:10]} Kxf6 {[%emt 0:00:03]} 34. Kf2 {[%emt 0:00:14]} Ba4 {[%emt 0:00:39]} 35. Rd4 {[%emt 0:00:45]} a5 {[%emt 0:00:41]} 36. Ke3 {[%emt 0:00:30]} Bb3 {[%emt 0:00:05]} 37. g3 {[%emt 0:01:03]} Na6 {[%emt 0:00:46]} 38. Rd3 {[%emt 0:01:26]} Nc5 {[%emt 0:01:55]} 39. Rd2 {[%emt 0:00:16]} Nd7 {[%emt 0:01:01]} 40. Kd4 {[%emt 0:00:00]} a4 {[%emt 0:00:00]} 41. Bc2 {[%emt 0:06:57]} Ne5 {[%emt 0:03:53]} 42. Rf2 {[%emt 0:02:38]} Bxc2 {[%emt 0:00:46]} 43. Rxc2 {[%emt 0:00:34]} Nxf3+ {[%emt 0:00:03]} 44. Ke4 {[%emt 0:00:00]} g4 {[%emt 0:00:14]} 45. h4 {[%emt 0:01:52]} 1-0